[Event "Late-Titled-Tuesday-Blitz-December-26-2023"]
[Site "Chess.com"]
[Date "2023.12.26"]
[Round "3"]
[White "Aguiar94"]
[Black "Kiborg95"]
[Result "0-1"]
[WhiteElo "2554"]
[BlackElo "2828"]
[TimeControl "180+1"]
[EndTime "14:26:54 PST"]
[Termination "Kiborg95 won by resignation"]

1. e4 {[%clk 0:03:00.9]} 1... d6 {[%clk 0:02:58.8]} 2. d4 {[%clk 0:03:00.1]}
2... Nf6 {[%clk 0:02:59.6]} 3. Nc3 {[%clk 0:02:59.1]} 3... e5 {[%clk 0:03:00]}
4. Nf3 {[%clk 0:02:56.6]} 4... Nbd7 {[%clk 0:03:00]} 5. Bc4 {[%clk 0:02:55.9]}
5... Be7 {[%clk 0:03:00.5]} 6. Ng5 {[%clk 0:02:55.6]} 6... O-O {[%clk
0:03:00.2]} 7. Bxf7+ {[%clk 0:02:55.8]} 7... Rxf7 {[%clk 0:03:00.7]} 8. Ne6
{[%clk 0:02:56.4]} 8... Qe8 {[%clk 0:03:00.8]} 9. Nxc7 {[%clk 0:02:57]} 9... Qd8
{[%clk 0:03:01.4]} 10. Nxa8 {[%clk 0:02:57.6]} 10... exd4 {[%clk 0:03:02]} 11.
Qxd4 {[%clk 0:02:57]} 11... b6 {[%clk 0:02:17.6]} 12. Nb5 {[%clk 0:02:21.3]}
12... Ne8 {[%clk 0:02:17]} 13. Qc4 {[%clk 0:01:51.4]} 13... Ne5 {[%clk
0:02:12.4]} 14. Qc3 {[%clk 0:01:49.6]} 14... Bf6 {[%clk 0:02:12.8]} 15. f4
{[%clk 0:01:31.1]} 15... Ng6 {[%clk 0:02:09.9]} 16. Qc4 {[%clk 0:01:12.7]} 16...
Bb7 {[%clk 0:01:58.9]} 17. Nxb6 {[%clk 0:00:32.2]} 17... Qxb6 {[%clk 0:01:53.7]}
18. Nc3 {[%clk 0:00:25.9]} 18... Ba6 {[%clk 0:01:47.5]} 19. Qb3 {[%clk
0:00:25.7]} 19... Qc6 {[%clk 0:01:43]} 20. Nd5 {[%clk 0:00:18.2]} 20... Bc4
{[%clk 0:01:37.2]} 21. Qf3 {[%clk 0:00:14.7]} 21... Nh4 {[%clk 0:01:29.1]} 22.
Qg3 {[%clk 0:00:10.1]} 22... Bxd5 {[%clk 0:01:25.5]} 23. exd5 {[%clk 0:00:11]}
23... Re7+ {[%clk 0:01:25.9]} 24. Kf1 {[%clk 0:00:09.9]} 24... Qxc2 {[%clk
0:01:21.5]} 25. Qg4 {[%clk 0:00:07.9]} 25... Qd3+ {[%clk 0:01:16.5]} 26. Kf2
{[%clk 0:00:08.1]} 26... Bd4+ {[%clk 0:01:16.9]} 0-1

[Event "Late-Titled-Tuesday-Blitz-December-26-2023"]
[Site "Chess.com"]
[Date "2023.12.26"]
[Round "3"]
[White "DanylaBagrov"]
[Black "Fore_Man"]
[Result "1-0"]
[WhiteElo "2576"]
[BlackElo "2403"]
[TimeControl "180+1"]
[EndTime "14:27:01 PST"]
[Termination "DanylaBagrov won by checkmate"]

1. d4 {[%clk 0:02:26.2]} 1... Nf6 {[%clk 0:02:59.6]} 2. c4 {[%clk 0:02:26.4]}
2... e6 {[%clk 0:02:59.8]} 3. Bf4 {[%clk 0:02:27.1]} 3... d5 {[%clk 0:02:59]} 4.
cxd5 {[%clk 0:02:28]} 4... exd5 {[%clk 0:02:59]} 5. e3 {[%clk 0:02:28.5]} 5...
c6 {[%clk 0:02:59.1]} 6. Bd3 {[%clk 0:02:28.3]} 6... Bd6 {[%clk 0:03:00]} 7.
Bxd6 {[%clk 0:02:28.6]} 7... Qxd6 {[%clk 0:03:00.4]} 8. Nc3 {[%clk 0:02:28.7]}
8... Nbd7 {[%clk 0:03:00.9]} 9. Nf3 {[%clk 0:02:27.7]} 9... O-O {[%clk 0:03:01]}
10. O-O {[%clk 0:02:27.2]} 10... Re8 {[%clk 0:03:00.7]} 11. Qc2 {[%clk
0:02:26.9]} 11... Nf8 {[%clk 0:02:59.3]} 12. h3 {[%clk 0:02:27]} 12... Be6
{[%clk 0:02:57]} 13. Rab1 {[%clk 0:02:23.2]} 13... Ng6 {[%clk 0:02:56.6]} 14. b4
{[%clk 0:02:21.1]} 14... Rac8 {[%clk 0:02:53.2]} 15. Rfc1 {[%clk 0:02:14.1]}
15... Qd7 {[%clk 0:02:38]} 16. Ne5 {[%clk 0:02:07.6]} 16... Qd6 {[%clk
0:02:29.7]} 17. f4 {[%clk 0:02:01.7]} 17... Nd7 {[%clk 0:01:56.6]} 18. f5 {[%clk
0:01:47.3]} 18... Ndxe5 {[%clk 0:01:56.6]} 19. dxe5 {[%clk 0:01:44.8]} 19...
Qxe5 {[%clk 0:01:57.5]} 20. fxe6 {[%clk 0:01:34.1]} 20... Qxe3+ {[%clk
0:01:57.1]} 21. Kh1 {[%clk 0:01:15.1]} 21... d4 {[%clk 0:01:10.8]} 22. exf7+
{[%clk 0:01:09.3]} 22... Kxf7 {[%clk 0:01:11.2]} 23. Bc4+ {[%clk 0:00:48.1]}
23... Kf8 {[%clk 0:00:59]} 24. Qf5+ {[%clk 0:00:48]} 24... Ke7 {[%clk
0:00:51.8]} 25. Re1 {[%clk 0:00:47.8]} 25... Kd6 {[%clk 0:00:50.3]} 26. Rxe3
{[%clk 0:00:46.3]} 26... dxe3 {[%clk 0:00:50.9]} 27. Ne4+ {[%clk 0:00:34.8]}
27... Kc7 {[%clk 0:00:51.1]} 28. Nc5 {[%clk 0:00:35.1]} 28... b6 {[%clk
0:00:47.4]} 29. Qd7+ {[%clk 0:00:33.2]} 29... Kb8 {[%clk 0:00:46.3]} 30. Qb7#
{[%clk 0:00:34.1]} 1-0

[Event "Late-Titled-Tuesday-Blitz-December-26-2023"]
[Site "Chess.com"]
[Date "2023.12.26"]
[Round "3"]
[White "AGW2016"]
[Black "Nick12772"]
[Result "1-0"]
[WhiteElo "2561"]
[BlackElo "2312"]
[TimeControl "180+1"]
[EndTime "14:27:07 PST"]
[Termination "AGW2016 won by resignation"]

1. d4 {[%clk 0:03:00.9]} 1... Nf6 {[%clk 0:03:00.2]} 2. Nc3 {[%clk 0:03:00.4]}
2... e6 {[%clk 0:02:59.9]} 3. Bf4 {[%clk 0:03:00.1]} 3... Bb4 {[%clk 0:02:59.5]}
4. Qd3 {[%clk 0:03:00.6]} 4... d5 {[%clk 0:02:58.8]} 5. a3 {[%clk 0:02:58.6]}
5... Bd6 {[%clk 0:02:55.8]} 6. Bxd6 {[%clk 0:02:57.2]} 6... Qxd6 {[%clk
0:02:56.1]} 7. e4 {[%clk 0:02:57.1]} 7... dxe4 {[%clk 0:02:56]} 8. Nxe4 {[%clk
0:02:58]} 8... Nxe4 {[%clk 0:02:56.1]} 9. Qxe4 {[%clk 0:02:58.9]} 9... Nd7
{[%clk 0:02:52.9]} 10. Nf3 {[%clk 0:02:59.4]} 10... Nf6 {[%clk 0:02:53]} 11. Qe3
{[%clk 0:02:59.9]} 11... b6 {[%clk 0:02:49.1]} 12. Bb5+ {[%clk 0:02:59.3]} 12...
Bd7 {[%clk 0:02:46]} 13. Bd3 {[%clk 0:02:58.7]} 13... Bc6 {[%clk 0:02:42.8]} 14.
O-O-O {[%clk 0:02:57.3]} 14... O-O-O {[%clk 0:02:38.8]} 15. Ne5 {[%clk
0:02:57.1]} 15... Rhf8 {[%clk 0:02:31.3]} 16. Nxc6 {[%clk 0:02:56.1]} 16... Qxc6
{[%clk 0:02:31.3]} 17. f3 {[%clk 0:02:52.2]} 17... Kb8 {[%clk 0:02:29.1]} 18.
Kb1 {[%clk 0:02:51.9]} 18... Qd6 {[%clk 0:02:27.4]} 19. Ba6 {[%clk 0:02:48.5]}
19... Nd5 {[%clk 0:02:23.7]} 20. Qe4 {[%clk 0:02:48.8]} 20... f5 {[%clk
0:02:21.1]} 21. Qe2 {[%clk 0:02:46.1]} 21... c6 {[%clk 0:02:05.1]} 22. Rhe1
{[%clk 0:02:42]} 22... Nc7 {[%clk 0:02:04.2]} 23. Bc4 {[%clk 0:02:38.6]} 23...
Rfe8 {[%clk 0:02:03]} 24. g3 {[%clk 0:02:38]} 24... Kb7 {[%clk 0:01:57.8]} 25.
Bb3 {[%clk 0:02:31]} 25... g5 {[%clk 0:01:45.4]} 26. Qe3 {[%clk 0:02:25]} 26...
h6 {[%clk 0:01:44.7]} 27. c3 {[%clk 0:02:23.2]} 27... Nd5 {[%clk 0:01:43.9]} 28.
Qe2 {[%clk 0:02:23.1]} 28... Nc7 {[%clk 0:01:43.9]} 29. Bc4 {[%clk 0:02:22.9]}
29... Nd5 {[%clk 0:01:39.5]} 30. Ba6+ {[%clk 0:02:21.9]} 30... Kb8 {[%clk
0:01:39.7]} 31. Qe5 {[%clk 0:02:19.2]} 31... Nc7 {[%clk 0:01:36.2]} 32. Bc4
{[%clk 0:02:18.4]} 32... Nd5 {[%clk 0:01:30.3]} 33. Qxd6+ {[%clk 0:02:15.1]}
33... Rxd6 {[%clk 0:01:30.1]} 34. Re5 {[%clk 0:02:15.8]} 34... Nc7 {[%clk
0:01:07.2]} 35. Rde1 {[%clk 0:02:13.6]} 35... Kc8 {[%clk 0:01:02.9]} 36. Kc2
{[%clk 0:02:11.5]} 36... Kd7 {[%clk 0:01:02.9]} 37. b4 {[%clk 0:02:02.9]} 37...
Nd5 {[%clk 0:01:00.5]} 38. Bb3 {[%clk 0:01:59.3]} 38... Nc7 {[%clk 0:00:57]} 39.
Rh1 {[%clk 0:01:55.3]} 39... b5 {[%clk 0:00:56]} 40. h4 {[%clk 0:01:55.5]} 40...
Rg8 {[%clk 0:00:49.6]} 41. Rxf5 {[%clk 0:01:44.4]} 41... gxh4 {[%clk 0:00:43.2]}
42. Rf7+ {[%clk 0:01:43.8]} 42... Kc8 {[%clk 0:00:41.4]} 43. Rxh4 {[%clk
0:01:44]} 43... Rxg3 {[%clk 0:00:38.3]} 44. Rxh6 {[%clk 0:01:44.6]} 44... Rg2+
{[%clk 0:00:37.7]} 45. Kd3 {[%clk 0:01:45.1]} 45... Nd5 {[%clk 0:00:21.3]} 46.
Bxd5 {[%clk 0:01:38.6]} 46... cxd5 {[%clk 0:00:16.5]} 47. Rxa7 {[%clk
0:01:29.9]} 1-0

[Event "Late-Titled-Tuesday-Blitz-December-26-2023"]
[Site "Chess.com"]
[Date "2023.12.26"]
[Round "3"]
[White "Korchmar_Vasiliy"]
[Black "ural58"]
[Result "1-0"]
[WhiteElo "2793"]
[BlackElo "2485"]
[TimeControl "180+1"]
[EndTime "14:27:19 PST"]
[Termination "Korchmar_Vasiliy won on time"]

1. e4 {[%clk 0:03:00.9]} 1... d5 {[%clk 0:02:49]} 2. exd5 {[%clk 0:03:01.8]}
2... Qxd5 {[%clk 0:02:48]} 3. Nc3 {[%clk 0:03:02]} 3... Qa5 {[%clk 0:02:47.8]}
4. d4 {[%clk 0:03:02.1]} 4... Nf6 {[%clk 0:02:47.5]} 5. Nf3 {[%clk 0:02:58.3]}
5... Nc6 {[%clk 0:02:46.6]} 6. Bb5 {[%clk 0:02:58]} 6... Ne4 {[%clk 0:02:45.6]}
7. Bd2 {[%clk 0:02:44.8]} 7... Nxc3 {[%clk 0:02:43.8]} 8. Bxc6+ {[%clk
0:02:44.4]} 8... bxc6 {[%clk 0:02:43.8]} 9. Bxc3 {[%clk 0:02:42.3]} 9... Qd5
{[%clk 0:02:43.5]} 10. h3 {[%clk 0:02:27.6]} 10... Ba6 {[%clk 0:02:42.6]} 11.
Qd2 {[%clk 0:02:23.4]} 11... e6 {[%clk 0:02:39.1]} 12. b3 {[%clk 0:02:17.3]}
12... Qe4+ {[%clk 0:02:35.7]} 13. Kd1 {[%clk 0:02:12.4]} 13... Bd6 {[%clk
0:02:32.2]} 14. Re1 {[%clk 0:01:55.2]} 14... Qg6 {[%clk 0:02:19.5]} 15. Qg5
{[%clk 0:01:53.3]} 15... Rd8 {[%clk 0:02:05.4]} 16. Qxg6 {[%clk 0:01:50.1]}
16... hxg6 {[%clk 0:02:04.9]} 17. Kc1 {[%clk 0:01:50.7]} 17... Rh5 {[%clk
0:00:49.9]} 18. Kb2 {[%clk 0:01:47.1]} 18... c5 {[%clk 0:00:49.8]} 19. Rad1
{[%clk 0:01:34.8]} 19... cxd4 {[%clk 0:00:49.1]} 20. Bxd4 {[%clk 0:01:35.7]}
20... Bb7 {[%clk 0:00:43.4]} 21. Rd3 {[%clk 0:01:18.5]} 21... Bb4 {[%clk
0:00:35.8]} 22. Red1 {[%clk 0:01:15.8]} 22... Bxf3 {[%clk 0:00:31.6]} 23. gxf3
{[%clk 0:01:11.9]} 23... Rxh3 {[%clk 0:00:26]} 24. Bxa7 {[%clk 0:01:10.6]} 24...
Rxd3 {[%clk 0:00:23.6]} 25. Rxd3 {[%clk 0:01:11.5]} 25... Bd6 {[%clk 0:00:20.8]}
26. a4 {[%clk 0:01:10.5]} 26... Kd7 {[%clk 0:00:21]} 27. c4 {[%clk 0:00:59.7]}
1-0

[Event "Late-Titled-Tuesday-Blitz-December-26-2023"]
[Site "Chess.com"]
[Date "2023.12.26"]
[Round "3"]
[White "elchacal664"]
[Black "hangemhigh"]
[Result "1-0"]
[WhiteElo "2292"]
[BlackElo "2463"]
[TimeControl "180+1"]
[EndTime "14:27:20 PST"]
[Termination "elchacal664 won on time"]

1. e4 {[%clk 0:03:00.9]} 1... d6 {[%clk 0:02:35.8]} 2. g3 {[%clk 0:02:59.3]}
2... Nf6 {[%clk 0:02:33.8]} 3. Bg2 {[%clk 0:02:59.8]} 3... e5 {[%clk 0:02:32.6]}
4. Ne2 {[%clk 0:03:00.2]} 4... c6 {[%clk 0:02:30.7]} 5. O-O {[%clk 0:03:00.7]}
5... h5 {[%clk 0:02:30.1]} 6. h3 {[%clk 0:02:58.8]} 6... Be7 {[%clk 0:02:26.2]}
7. c4 {[%clk 0:02:59.2]} 7... Nbd7 {[%clk 0:02:26.1]} 8. d4 {[%clk 0:02:59.5]}
8... Qc7 {[%clk 0:02:22.9]} 9. b3 {[%clk 0:02:59.6]} 9... Nf8 {[%clk 0:02:21.8]}
10. Bb2 {[%clk 0:03:00.2]} 10... Ng6 {[%clk 0:02:21.8]} 11. Nbc3 {[%clk
0:03:00.1]} 11... h4 {[%clk 0:02:21.3]} 12. g4 {[%clk 0:02:59.3]} 12... Nxg4
{[%clk 0:02:11.9]} 13. hxg4 {[%clk 0:02:59.4]} 13... Bxg4 {[%clk 0:02:12.8]} 14.
f3 {[%clk 0:02:58.2]} 14... Bd7 {[%clk 0:02:09.1]} 15. Kh2 {[%clk 0:02:58.3]}
15... h3 {[%clk 0:02:07.5]} 16. Bh1 {[%clk 0:02:57]} 16... d5 {[%clk 0:01:57.8]}
17. f4 {[%clk 0:02:48.6]} 17... exf4 {[%clk 0:01:50.6]} 18. e5 {[%clk
0:02:47.5]} 18... dxc4 {[%clk 0:01:46.1]} 19. bxc4 {[%clk 0:02:46.7]} 19... Bg4
{[%clk 0:01:40.5]} 20. Ne4 {[%clk 0:02:44.8]} 20... O-O-O {[%clk 0:01:35.5]} 21.
Qe1 {[%clk 0:02:38.5]} 21... f3 {[%clk 0:01:21.9]} 22. N2g3 {[%clk 0:02:36.9]}
22... f6 {[%clk 0:01:17.9]} 23. Bxf3 {[%clk 0:02:33.5]} 23... Bxf3 {[%clk
0:01:15.2]} 24. Rxf3 {[%clk 0:02:34]} 24... fxe5 {[%clk 0:01:14.1]} 25. d5
{[%clk 0:02:34.2]} 25... Kb8 {[%clk 0:01:06.7]} 26. Rf7 {[%clk 0:02:18.9]} 26...
cxd5 {[%clk 0:00:55.5]} 27. cxd5 {[%clk 0:02:17]} 27... Rxd5 {[%clk 0:00:49.5]}
28. Nf5 {[%clk 0:02:16.9]} 28... Qc2+ {[%clk 0:00:44.1]} 29. Qf2 {[%clk
0:02:08.6]} 29... Qxf2+ {[%clk 0:00:27]} 30. Nxf2 {[%clk 0:02:09.5]} 30... Rd2
{[%clk 0:00:24.3]} 31. Kg3 {[%clk 0:02:08.1]} 31... Bc5 {[%clk 0:00:16]} 32. Ne4
{[%clk 0:01:58.5]} 32... Rg2+ {[%clk 0:00:15.9]} 33. Kf3 {[%clk 0:01:56.3]}
33... Bb6 {[%clk 0:00:12.6]} 34. Rxg7 {[%clk 0:01:53.7]} 34... Nh4+ {[%clk
0:00:09.7]} 35. Nxh4 {[%clk 0:01:52.4]} 35... Rxg7 {[%clk 0:00:09.2]} 36. Bxe5+
{[%clk 0:01:51.1]} 36... Bc7 {[%clk 0:00:08]} 37. Bxg7 {[%clk 0:01:50.5]} 37...
Rxh4 {[%clk 0:00:08.1]} 38. Bd4 {[%clk 0:01:40.9]} 38... Rf4+ {[%clk 0:00:06.3]}
39. Ke3 {[%clk 0:01:41]} 39... h2 {[%clk 0:00:06.3]} 40. Rh1 {[%clk 0:01:40.6]}
40... Rg4 {[%clk 0:00:06.1]} 41. Nf2 {[%clk 0:01:35.1]} 41... Rg1 {[%clk
0:00:03.6]} 42. Kf3 {[%clk 0:01:32.3]} 42... Rd1 {[%clk 0:00:01.9]} 43. Nxd1
{[%clk 0:01:29.2]} 1-0

[Event "Late-Titled-Tuesday-Blitz-December-26-2023"]
[Site "Chess.com"]
[Date "2023.12.26"]
[Round "3"]
[White "Genghis_K"]
[Black "Alex_Banzea"]
[Result "1-0"]
[WhiteElo "2864"]
[BlackElo "2646"]
[TimeControl "180+1"]
[EndTime "14:27:24 PST"]
[Termination "Genghis_K won by resignation"]

1. e4 {[%clk 0:02:48]} 1... c5 {[%clk 0:03:00.2]} 2. Nf3 {[%clk 0:02:47.9]} 2...
g6 {[%clk 0:03:00.7]} 3. d4 {[%clk 0:02:48.1]} 3... cxd4 {[%clk 0:03:01.6]} 4.
Nxd4 {[%clk 0:02:47.8]} 4... Bg7 {[%clk 0:03:02]} 5. c4 {[%clk 0:02:47.7]} 5...
Nc6 {[%clk 0:03:02.5]} 6. Be3 {[%clk 0:02:48]} 6... Qb6 {[%clk 0:03:03.2]} 7.
Nb3 {[%clk 0:02:46.8]} 7... Qd8 {[%clk 0:03:03.2]} 8. Nc3 {[%clk 0:02:47.2]}
8... Bxc3+ {[%clk 0:03:03.2]} 9. bxc3 {[%clk 0:02:48.1]} 9... Nf6 {[%clk
0:03:03.3]} 10. Bd3 {[%clk 0:02:48]} 10... d6 {[%clk 0:03:03.5]} 11. f4 {[%clk
0:02:48.5]} 11... Be6 {[%clk 0:02:52.3]} 12. Qe2 {[%clk 0:02:48]} 12... Rc8
{[%clk 0:02:46.9]} 13. O-O {[%clk 0:02:46.8]} 13... b6 {[%clk 0:02:14.7]} 14. h3
{[%clk 0:02:27.9]} 14... Qc7 {[%clk 0:01:37.1]} 15. Rad1 {[%clk 0:02:16.1]}
15... Nb8 {[%clk 0:01:26.6]} 16. c5 {[%clk 0:01:46.8]} 16... bxc5 {[%clk
0:01:12]} 17. e5 {[%clk 0:01:44.8]} 17... Nd5 {[%clk 0:01:11.1]} 18. Bb5+ {[%clk
0:01:40.5]} 18... Kf8 {[%clk 0:01:05.4]} 19. f5 {[%clk 0:01:26.5]} 19... Nxe3
{[%clk 0:01:01.6]} 20. Qxe3 {[%clk 0:01:05.6]} 20... Bxf5 {[%clk 0:00:49.8]} 21.
Rxf5 {[%clk 0:01:02.5]} 21... gxf5 {[%clk 0:00:49.6]} 22. Qh6+ {[%clk
0:01:02.3]} 22... Kg8 {[%clk 0:00:50.3]} 23. Rd3 {[%clk 0:01:02.7]} 23... f4
{[%clk 0:00:50.8]} 24. Qxf4 {[%clk 0:00:58.9]} 24... h6 {[%clk 0:00:08.4]} 25.
Rg3+ {[%clk 0:00:47.3]} 25... Kf8 {[%clk 0:00:08.7]} 26. e6 {[%clk 0:00:47.5]}
26... Rh7 {[%clk 0:00:06.7]} 27. Qg4 {[%clk 0:00:46.6]} 1-0

[Event "Late-Titled-Tuesday-Blitz-December-26-2023"]
[Site "Chess.com"]
[Date "2023.12.26"]
[Round "3"]
[White "Balla_Tamas"]
[Black "SlipperySpeedster"]
[Result "0-1"]
[WhiteElo "2441"]
[BlackElo "2622"]
[TimeControl "180+1"]
[EndTime "14:27:28 PST"]
[Termination "SlipperySpeedster won by resignation"]

1. e4 {[%clk 0:03:00.9]} 1... e5 {[%clk 0:02:59.5]} 2. Nf3 {[%clk 0:03:00.9]}
2... Nc6 {[%clk 0:02:58.2]} 3. d4 {[%clk 0:03:01.1]} 3... exd4 {[%clk
0:02:57.9]} 4. Nxd4 {[%clk 0:03:02]} 4... Nf6 {[%clk 0:02:58.4]} 5. Nxc6 {[%clk
0:03:00.3]} 5... bxc6 {[%clk 0:02:59.3]} 6. e5 {[%clk 0:03:01]} 6... Qe7 {[%clk
0:02:58.9]} 7. Qe2 {[%clk 0:03:01.3]} 7... Nd5 {[%clk 0:02:59.5]} 8. h4 {[%clk
0:03:02.2]} 8... a5 {[%clk 0:02:50.6]} 9. c4 {[%clk 0:02:56.2]} 9... Ba6 {[%clk
0:02:50.1]} 10. Nd2 {[%clk 0:02:56.2]} 10... Nb4 {[%clk 0:02:39.2]} 11. Nf3
{[%clk 0:02:38.2]} 11... d5 {[%clk 0:02:32.8]} 12. a3 {[%clk 0:01:51.5]} 12...
Bxc4 {[%clk 0:02:26.5]} 13. Qd1 {[%clk 0:01:49.1]} 13... Bxf1 {[%clk 0:02:00.6]}
14. Kxf1 {[%clk 0:01:50]} 14... Na6 {[%clk 0:01:58.6]} 15. Bg5 {[%clk
0:01:48.7]} 15... Qd7 {[%clk 0:01:51.8]} 16. e6 {[%clk 0:01:35.2]} 16... Qd6
{[%clk 0:01:35.9]} 17. exf7+ {[%clk 0:01:27.9]} 17... Kxf7 {[%clk 0:01:34.7]}
18. Nd4 {[%clk 0:00:42.9]} 18... Kg8 {[%clk 0:01:22.9]} 19. Qe2 {[%clk
0:00:36.3]} 19... c5 {[%clk 0:01:14.2]} 20. Nf5 {[%clk 0:00:33.7]} 20... Qd7
{[%clk 0:01:12.1]} 21. Qg4 {[%clk 0:00:30.2]} 21... Nb8 {[%clk 0:01:00.3]} 22.
Bf6 {[%clk 0:00:14.3]} 22... h5 {[%clk 0:00:50]} 23. Qg6 {[%clk 0:00:11.1]}
23... Ra6 {[%clk 0:00:46.3]} 24. Re1 {[%clk 0:00:01.5]} 24... Rxf6 {[%clk
0:00:43.6]} 0-1

[Event "Late-Titled-Tuesday-Blitz-December-26-2023"]
[Site "Chess.com"]
[Date "2023.12.26"]
[Round "3"]
[White "laskakid"]
[Black "Gyulamiryan-koryun"]
[Result "1-0"]
[WhiteElo "2357"]
[BlackElo "2031"]
[TimeControl "180+1"]
[EndTime "14:27:34 PST"]
[Termination "laskakid won by checkmate"]

1. d4 {[%clk 0:03:00.9]} 1... Nf6 {[%clk 0:02:59.2]} 2. c4 {[%clk 0:03:00.9]}
2... c5 {[%clk 0:02:58.4]} 3. d5 {[%clk 0:03:00.4]} 3... b5 {[%clk 0:02:58.4]}
4. cxb5 {[%clk 0:03:00]} 4... a6 {[%clk 0:02:56.3]} 5. e3 {[%clk 0:03:00.1]}
5... g6 {[%clk 0:02:54.3]} 6. Nc3 {[%clk 0:02:59.4]} 6... Bg7 {[%clk 0:02:54.4]}
7. a4 {[%clk 0:02:59.2]} 7... d6 {[%clk 0:02:49.4]} 8. e4 {[%clk 0:02:58.6]}
8... Nbd7 {[%clk 0:02:48.1]} 9. Nf3 {[%clk 0:02:55.9]} 9... Ng4 {[%clk
0:02:14.8]} 10. Ra3 {[%clk 0:02:47.2]} 10... Nge5 {[%clk 0:02:10.2]} 11. Nd2
{[%clk 0:02:37.4]} 11... O-O {[%clk 0:02:03.4]} 12. f4 {[%clk 0:02:26]} 12...
Nb6 {[%clk 0:01:47.7]} 13. fxe5 {[%clk 0:02:22.6]} 13... Bxe5 {[%clk 0:01:45.8]}
14. Nf3 {[%clk 0:02:17.8]} 14... Bg7 {[%clk 0:01:38.4]} 15. bxa6 {[%clk
0:02:09.7]} 15... f5 {[%clk 0:01:34.6]} 16. exf5 {[%clk 0:01:57.2]} 16... Rxf5
{[%clk 0:01:25.4]} 17. Bd3 {[%clk 0:01:53]} 17... Bxc3+ {[%clk 0:01:18.1]} 18.
bxc3 {[%clk 0:01:44.5]} 18... Rxd5 {[%clk 0:01:18.1]} 19. Bc4 {[%clk 0:01:33.5]}
19... Be6 {[%clk 0:01:06.8]} 20. Bxd5 {[%clk 0:01:32.3]} 20... Bxd5 {[%clk
0:01:04.1]} 21. O-O {[%clk 0:01:30.2]} 21... Rxa6 {[%clk 0:01:02.1]} 22. a5
{[%clk 0:01:27.7]} 22... Bc4 {[%clk 0:00:55.9]} 23. axb6 {[%clk 0:01:20.9]}
23... Bxf1 {[%clk 0:00:55.2]} 24. Qxf1 {[%clk 0:01:16.6]} 24... Rxa3 {[%clk
0:00:55.2]} 25. Bxa3 {[%clk 0:01:14.2]} 25... Qxb6 {[%clk 0:00:55.1]} 26. Ng5
{[%clk 0:01:06.5]} 26... c4+ {[%clk 0:00:50.5]} 27. Qf2 {[%clk 0:01:05.2]} 27...
Qb1+ {[%clk 0:00:48.8]} 28. Qf1 {[%clk 0:01:05.1]} 28... Qb6+ {[%clk 0:00:47.8]}
29. Kh1 {[%clk 0:01:04.9]} 29... Kg7 {[%clk 0:00:33.5]} 30. Bc1 {[%clk
0:00:58.2]} 30... Kh6 {[%clk 0:00:13.6]} 31. Ne6+ {[%clk 0:00:53.7]} 31... Kh5
{[%clk 0:00:11.7]} 32. Qf3+ {[%clk 0:00:51.5]} 32... Kh4 {[%clk 0:00:09.2]} 33.
Qh3# {[%clk 0:00:51.4]} 1-0

[Event "Late-Titled-Tuesday-Blitz-December-26-2023"]
[Site "Chess.com"]
[Date "2023.12.26"]
[Round "3"]
[White "IgorBjelobrk"]
[Black "WindWhistler11"]
[Result "0-1"]
[WhiteElo "2660"]
[BlackElo "2481"]
[TimeControl "180+1"]
[EndTime "14:27:47 PST"]
[Termination "WindWhistler11 won by resignation"]

1. d4 {[%clk 0:03:00.9]} 1... Nf6 {[%clk 0:02:59.3]} 2. c4 {[%clk 0:03:00.4]}
2... e6 {[%clk 0:02:59.9]} 3. g3 {[%clk 0:03:00.3]} 3... c5 {[%clk 0:03:00.1]}
4. d5 {[%clk 0:02:59.7]} 4... exd5 {[%clk 0:03:01]} 5. cxd5 {[%clk 0:02:58.8]}
5... Bd6 {[%clk 0:03:01.7]} 6. Nc3 {[%clk 0:02:48.5]} 6... O-O {[%clk
0:03:01.9]} 7. Bg2 {[%clk 0:02:47.6]} 7... Re8 {[%clk 0:03:02.1]} 8. Nf3 {[%clk
0:02:47.2]} 8... b6 {[%clk 0:03:02.2]} 9. O-O {[%clk 0:02:41.8]} 9... Na6 {[%clk
0:02:52.3]} 10. Re1 {[%clk 0:02:31.8]} 10... Bf8 {[%clk 0:02:40]} 11. e4 {[%clk
0:02:26.5]} 11... d6 {[%clk 0:02:39.9]} 12. e5 {[%clk 0:02:19.1]} 12... dxe5
{[%clk 0:02:39.6]} 13. Nxe5 {[%clk 0:02:18.7]} 13... Bb7 {[%clk 0:02:38.5]} 14.
Bf4 {[%clk 0:02:03.3]} 14... Nb4 {[%clk 0:02:20.6]} 15. Nc6 {[%clk 0:01:57.6]}
15... Rxe1+ {[%clk 0:02:12.3]} 16. Qxe1 {[%clk 0:01:57.1]} 16... Qd7 {[%clk
0:01:59.1]} 17. Rd1 {[%clk 0:01:47.3]} 17... Nbxd5 {[%clk 0:01:27.4]} 18. Ne5
{[%clk 0:00:18.3]} 18... Qe6 {[%clk 0:01:27.1]} 19. Bg5 {[%clk 0:00:18.1]} 19...
Nxc3 {[%clk 0:00:55.9]} 20. Qxc3 {[%clk 0:00:11.7]} 20... Bxg2 {[%clk
0:00:51.6]} 21. Kxg2 {[%clk 0:00:12.6]} 21... Ne4 {[%clk 0:00:45]} 22. Qf3
{[%clk 0:00:04.2]} 22... Qxe5 {[%clk 0:00:42.4]} 23. Bf4 {[%clk 0:00:04.5]}
23... Qe6 {[%clk 0:00:39]} 24. Re1 {[%clk 0:00:04.1]} 24... Re8 {[%clk
0:00:39.1]} 25. Qd3 {[%clk 0:00:02.9]} 25... Qc6 {[%clk 0:00:33.1]} 26. f3
{[%clk 0:00:02.1]} 26... Nf6 {[%clk 0:00:33.7]} 27. Rxe8 {[%clk 0:00:02.3]}
27... Nxe8 {[%clk 0:00:33.6]} 0-1